[Event "Sheffield Masters 2024"]
[Site "Sheffield"]
[Date "2024.04.10"]
[Round "1"]
[White "O`Gorman, Tom"]
[Black "Chow, Samuel"]
[Result "1/2-1/2"]
[ECO "C11"]
[WhiteElo "2321"]
[BlackElo "2350"]
[Annotator "TA"]
[PlyCount "297"]
[EventDate "2024.04.11"]
[EventType "tourn"]
[EventCountry "ENG"]
[SourceTitle "playchess.com"]
[Source "ChessBase"]
[SourceQuality "1"]
[TimeControl "5400+30"]

{[%evp 16,297,8,0,20,26,24,2,13,0,16,0,0,5,13,8,15,0,5,0,12,0,13,4,7,0,10,11,6,12,6,11,7,6,4,10,20,6,51,58,80,85,117,114,110,109,116,89,102,78,75,76,75,80,75,85,88,78,84,82,59,14,14,8,8,0,0,0,0,0,0,0,0,-25,-8,-8,8,8,76,76,76,76,73,70,69,69,66,39,39,39,39,39,39,39,39,39,39,39,68,68,60,60,68,25,25,25,68,38,38,38,66,53,66,66,66,66,59,25,25,25,25,25,25,25,25,25,25,25,25,25,25,25,25,25,25,25,25,25,69,69,75,66,71,25,25,25,25,25,33,25,69,69,69,69,69,69,69,68,69,68,68,68,68,68,76,76,76,76,76,68,76,68,76,76,76,76,76,76,76,70,70,70,76,76,76,76,76,61,76,69,69,62,62,61,61,61,61,61,62,62,62,62,62,62,62,61,61,61,62,62,62,62,62,61,61,61,61,61,61,61,61,61,61,61,61,0,62,61,61,61,61,8,8,0,0,0,0,0,0,0,0,0,0,0,0,0,0,0,0,0,0,0,0,0,0,0,0,0,0,0,0,0,0,0,0,0,0,0,8,8,8,0,0,0,0,0,29999,0,0,0,0,0,0,0]} 1. e4 {[%emt 0:00:08]} e6 {[%emt 0:00:12]} 2. d4 {[%emt 0:00:08]} d5 {[%emt 0:00:09]} 3. Nc3 {[%emt 0:00:14]} Nf6 {[%emt 0:00:34]} 4. e5 {[%emt 0:00:07]} Nfd7 {[%emt 0:00:11]} 5. f4 {[%emt 0:00:07]} c5 {[%emt 0:00:11]} 6. Nf3 {[%emt 0:00:06]} Nc6 {[%emt 0:00:29]} 7. Be3 {[%emt 0:00:08]} a6 {[%emt 0:00:34]} 8. Qd2 {[%emt 0:00:15]} b5 {[%emt 0:00:37][%cal Bb7b5,Bb5b4][%mdl 32]} 9. Bd3 {[%emt 0:00:36]} Qa5 {[%emt 0:19:52]} 10. O-O {[%emt 0:10:45]} b4 {[%emt 0:02:16]} 11. Nd1 {[%emt 0:01:00]} cxd4 {[%emt 0:01:02]} 12. Nxd4 {[%emt 0:03:01]} Nxd4 {[%emt 0:00:11]} 13. Bxd4 {[%emt 0:00:08]} Bc5 {[%emt 0:00:24]} 14. Bxc5 {[%emt 0:04:40]} Qxc5+ {[%emt 0:01:20]} 15. Kh1 {[%emt 0:00:58][%cal Oc2c4]} O-O {[%emt 0:03:49]} 16. a3 {[%emt 0:11:42]} bxa3 {[%emt 0:00:25]} 17. Rxa3 {[%emt 0:00:08]} f6 {[%emt 0:03:30]} 18. exf6 {[%emt 0:12:28]} Nxf6 {[%emt 0:00:17]} 19. Ne3 {[%emt 0:02:37]} Bb7 {[%emt 0:04:46]} 20. Qe2 {[%emt 0:03:40][%cal Oe3g4]} Qd6 {[%emt 0:06:15]} 21. Ng4 {[%emt 0:14:09]} Nxg4 {[%emt 0:02:55]} 22. Qxg4 {[%emt 0:00:08]} Rf6 {[%emt 0:09:21]} 23. Qh5 {[%emt 0:04:18]} h6 {[%emt 0:02:08][%cal Oa8f8]} 24. Qe5 {[%emt 0:00:58]} Qxe5 {[%emt 0:13:01]} 25. fxe5 {[%emt 0:00:08]} Rxf1+ {[%emt 0:00:11]} 26. Bxf1 $11 {[%emt 0:00:04][%mdl 4096] Endgame. KRB-KRB} d4 {[%emt 0:02:21]} 27. Bd3 {[%emt 0:07:29]} Rc8 {[%emt 0:06:59]} 28. Ra4 {[%emt 0:08:18]} (28. Bxa6 $2 Rxc2 29. h3 Bxg2+ 30. Kg1 Rxb2 $19) 28... Rc5 {[%emt 0:01:05]} 29. Rxd4 {[%emt 0:00:07]} (29. Bxa6 $2 Bxa6 (29... Rxc2 30. h4 $17) 30. Rxd4 Rxc2 $19) 29... Rxe5 {[%emt 0:00:05]} 30. Kg1 {[%emt 0:00:07]} Rd5 {[%emt 0:09:20]} 31. Rb4 {[%emt 0:03:48]} Rd7 {[%emt 0:02:04]} 32. Rb6 {[%emt 0:01:34][%csl LRa6,LRe6]} Kf7 {[%emt 0:00:16]} 33. b4 {[%emt 0:02:27][%cal Og1f2] White is more active.} (33. Bxa6 Bxa6 34. Rxa6 Rd1+ 35. Kf2 Rd2+ 36. Kf3 Rxc2 $11) 33... Kf6 {[%emt 0:02:07]} 34. Kf2 {[%emt 0:00:30][%cal Og2g3]} (34. Bxa6 Bxa6 35. Rxa6 Rd1+ 36. Kf2 Rd2+ 37. Kf3 Rxc2 $11) 34... Ke5 {[%emt 0:00:45]} 35. Ke3 {[%emt 0:03:12]} (35. Bxa6 Bxa6 36. Rxa6 Rd2+ 37. Kf3 Rxc2 $11) 35... Bxg2 {[%emt 0:02:50]} 36. Rxa6 {[%emt 0:00:07]} Rf7 {[%emt 0:00:52]} 37. Ra5+ {[%emt 0:02:12]} Kd6 {[%emt 0:00:15]} 38. c4 {[%emt 0:00:54]} Rf3+ {[%emt 0:01:36]} 39. Kd2 {[%emt 0:00:41] Black should prevent c5+.} Rh3 $1 {[%emt 0:00:32]} 40. Ra7 {[%emt 0:05:38]} g5 {[%emt 0:00:54]} 41. c5+ {[%emt 0:00:29]} Ke5 {[%emt 0:00:32]} 42. Be2 {[%emt 0:00:38] Prevents g4.} Rxh2 {[%emt 0:00:39]} 43. Ke3 {[%emt 0:00:08] Prevents Bf3. b5 would now be deadly.} Rh3+ {[%emt 0:01:07]} 44. Kf2 {[%emt 0:00:09]} Bd5 {[%emt 0:00:37] Threatens to win with ...h5.} 45. b5 {[%emt 0:00:53][%cal Bb4b5,Bb5b6][%mdl 32]} Rc3 {[%emt 0:00:29]} 46. c6 {[%emt 0:00:26] Hoping for c7.} Rc2 {[%emt 0:02:06]} (46... Kd6 $11 {keeps the balance.}) 47. c7 $16 {[%emt 0:00:37][%mdl 1024] aiming for Ke3. White has strong compensation.} Kd6 {[%emt 0:00:28]} 48. b6 {[%emt 0:00:11]} e5 {[%emt 0:01:07]} 49. Ke3 {[%emt 0:00:34]} Be6 {[%emt 0:00:05] Wards off Bg4} 50. Ra8 {[%emt 0:00:45]} Rc3+ $1 {[%emt 0:00:23]} 51. Kd2 {[%emt 0:00:10][%cal Ob6b7] White wants to mate with b7!} Rb3 {[%emt 0:00:03]} 52. Rd8+ {[%emt 0:01:02]} Kc6 {[%emt 0:00:29]} 53. c8=Q+ {[%emt 0:00:23]} Bxc8 {[%emt 0:00:04]} 54. Rxc8+ $14 {[%emt 0:00:04] KRB-KR} Kb7 {[%emt 0:00:09]} 55. Re8 {[%emt 0:00:17]} Rxb6 {[%emt 0:00:10]} 56. Rxe5 {[%emt 0:00:06]} Rf6 {[%emt 0:00:31]} 57. Ke3 {[%emt 0:00:13]} Kc7 {[%emt 0:00:16]} 58. Kd4 {[%emt 0:00:36]} Kd6 {[%emt 0:00:13]} 59. Rd5+ {[%emt 0:00:05]} Ke7 {[%emt 0:00:08]} 60. Ra5 {[%emt 0:00:46]} Kd6 {[%emt 0:00:22]} 61. Bh5 {[%emt 0:00:27][%cal Oh5g6]} Rf4+ {[%emt 0:00:23]} 62. Ke3 {[%emt 0:00:07]} Rf6 {[%emt 0:00:05]} 63. Bg4 {[%emt 0:00:36]} Rf4 {[%emt 0:00:41]} 64. Be2 {[%emt 0:00:15]} Rf6 {[%emt 0:00:05]} 65. Bd3 {[%emt 0:00:06]} Ke7 {[%emt 0:00:49]} 66. Bf5 {[%emt 0:00:12] Against Re6+} Rb6 {[%emt 0:00:17]} 67. Kf3 {[%emt 0:00:17]} Kf6 {[%emt 0:00:07]} 68. Bc2 {[%emt 0:01:47]} Rc6 {[%emt 0:00:42]} 69. Bd3 {[%emt 0:00:17]} Rd6 {[%emt 0:00:44]} 70. Be4 {[%emt 0:00:19]} Rb6 {[%emt 0:00:23]} 71. Rd5 {[%emt 0:01:43]} Rb3+ {[%emt 0:00:22]} 72. Bd3 {[%emt 0:00:06]} Rb6 {[%emt 0:01:11]} 73. Rf5+ {[%emt 0:01:06]} Kg7 {[%emt 0:00:26]} 74. Rc5 {[%emt 0:00:11]} Kf6 {[%emt 0:00:21]} 75. Kg4 {[%emt 0:00:08]} Rb4+ {[%emt 0:00:53]} 76. Bc4 {[%emt 0:00:07]} Rb2 {[%emt 0:00:54]} 77. Rc6+ {[%emt 0:00:31]} Kg7 {[%emt 0:00:25]} 78. Bd3 {[%emt 0:00:54]} Rb3 {[%emt 0:00:39]} 79. Rg6+ {[%emt 0:00:36]} ({Better is} 79. Be4 $16) 79... Kf7 $11 {[%emt 0:00:14]} 80. Rd6 {[%emt 0:00:06]} Ke7 {[%emt 0:00:26]} 81. Rd4 {[%emt 0:00:18]} Rb6 {[%emt 0:00:29]} 82. Kh5 {[%emt 0:00:17]} Kf6 {[%emt 0:01:11] Wards off Bg6} 83. Bg6 {[%emt 0:01:45]} (83. Kxh6 Ke5+ 84. Kxg5 Rg6+ 85. Bxg6 Kxd4 $11) 83... Rb2 {[%emt 0:01:47] ( -> ...Rh2+)} 84. Kxh6 {[%emt 0:00:21]} Rg2 {[%emt 0:00:40]} 85. Ra4 {[%emt 0:01:13]} Rg1 {[%emt 0:00:36]} 86. Be4 {[%emt 0:00:46]} Rg4 {[%emt 0:00:35][%cal Rg4h4]} 87. Ra6+ {[%emt 0:00:04]} Ke5 {[%emt 0:00:06]} 88. Bb7 {[%emt 0:00:40]} Rg1 {[%emt 0:00:34]} 89. Kh5 {[%emt 0:00:18]} Kf5 {[%emt 0:01:10]} 90. Bc8+ {[%emt 0:00:19]} Kf4 {[%emt 0:00:20] [#]} 91. Ra4+ $1 {[%emt 0:00:04]} Ke5 {[%emt 0:00:41]} 92. Bg4 {[%emt 0:00:10]} Rg2 {[%emt 0:00:23]} 93. Ra8 {[%emt 0:00:25]} Kf4 {[%emt 0:00:24]} 94. Rf8+ {[%emt 0:00:05]} Ke5 {[%emt 0:00:18]} 95. Kxg5 {[%emt 0:00:07]} Rg1 {[%emt 0:00:23]} 96. Re8+ {[%emt 0:00:06]} Kd6 {[%emt 0:00:31]} 97. Kf4 {[%emt 0:00:43]} Rf1+ {[%emt 0:00:29]} 98. Bf3 {[%emt 0:00:04]} Kc5 {[%emt 0:00:12]} 99. Rd8 {[%emt 0:01:07]} Kc4 {[%emt 0:00:18]} 100. Ke3 {[%emt 0:01:37] Intending Be2+ and mate.} Re1+ {[%emt 0:00:12]} 101. Kd2 {[%emt 0:00:06]} Rg1 {[%emt 0:00:45]} 102. Be4 {[%emt 0:00:28]} Rg3 {[%emt 0:00:14]} 103. Bd3+ {[%emt 0:00:05]} Kc5 {[%emt 0:00:10]} 104. Kc3 {[%emt 0:00:04]} Rh3 {[%emt 0:00:12]} 105. Rg8 {[%emt 0:00:07]} Rh5 {[%emt 0:00:18]} 106. Ra8 {[%emt 0:00:12] Ra5+ would kill now.} Rh3 {[%emt 0:00:12]} 107. Ra5+ {[%emt 0:00:05]} Kb6 {[%emt 0:00:06]} 108. Re5 {[%emt 0:00:11]} Kc6 {[%emt 0:00:21]} 109. Kd4 {[%emt 0:00:09]} Kd6 {[%emt 0:00:11][%cal Oh3d3]} 110. Ra5 {[%emt 0:00:11]} Ke7 {[%emt 0:00:55]} 111. Be4 {[%emt 0:00:11]} Rh2 {[%emt 0:00:24]} 112. Ke5 {[%emt 0:00:10]} Re2 {[%emt 0:00:06]} 113. Ra7+ {[%emt 0:00:07]} Ke8 {[%emt 0:00:13]} 114. Kd5 {[%emt 0:00:11]} Kf8 {[%emt 0:00:08]} 115. Bf5 {[%emt 0:00:10]} Re7 {[%emt 0:00:40]} 116. Ra1 {[%emt 0:00:07]} Re2 {[%emt 0:00:35]} 117. Be4 {[%emt 0:00:37]} Ke7 {[%emt 0:00:20]} 118. Ke5 {[%emt 0:00:09]} Ke8 {[%emt 0:00:25]} 119. Ra6 {[%emt 0:05:05]} Re1 {[%emt 0:00:51]} 120. Ra7 {[%emt 0:01:07]} (120. Re6+ Kd8 121. Kd6 Re2 $16) 120... Re2 {[%emt 0:00:12]} 121. Kf5 {[%emt 0:00:04]} Kd8 {[%emt 0:00:09]} 122. Bd5 {[%emt 0:00:30]} Re7 {[%emt 0:00:20]} 123. Ra4 {[%emt 0:00:42]} ({White should try} 123. Bb7 $14) 123... Re1 {[%emt 0:00:16]} 124. Be6 {[%emt 0:00:13]} Ke7 {[%emt 0:00:34]} 125. Ra7+ {[%emt 0:00:13]} Kd6 {[%emt 0:00:14]} 126. Bc4 {[%emt 0:00:17]} Rc1 {[%emt 0:00:47]} 127. Bd3 {[%emt 0:00:13]} Rc5+ {[%emt 0:00:38]} 128. Kf4 {[%emt 0:00:12]} Rc1 {[%emt 0:01:00]} 129. Ke4 {[%emt 0:00:12]} Re1+ {[%emt 0:00:13]} 130. Kd4 {[%emt 0:00:05]} Ke6 {[%emt 0:00:28]} 131. Ra6+ {[%emt 0:00:05]} Ke7 {[%emt 0:00:11]} 132. Bc4 {[%emt 0:00:11]} Rd1+ {[%emt 0:00:52]} 133. Kc5 {[%emt 0:00:05]} Rc1 {[%emt 0:00:53]} 134. Re6+ {[%emt 0:00:22]} Kd7 {[%emt 0:00:49]} 135. Rf6 {[%emt 0:00:05]} Ke7 {[%emt 0:00:57]} 136. Rf7+ {[%emt 0:00:04]} Ke8 {[%emt 0:00:04]} 137. Ra7 {[%emt 0:00:20]} Kf8 {[%emt 0:01:01]} 138. Rc7 {[%emt 0:00:09]} (138. Kd6 $5) 138... Rb1 {[%emt 0:01:04]} ({Avoid the trap} 138... Ke8 $2 139. Kd6 Kf8 140. Rf7+ Kg8 (140... Ke8 141. Rf4 Rd1+ 142. Bd5 Rd2 143. Rb4 Kf8 144. Rg4 Rxd5+ 145. Kxd5) 141. Be6 $18) 139. Kd6 {[%emt 0:00:13]} Rb6+ {[%emt 0:00:24]} 140. Ke5 {[%emt 0:00:05]} Rg6 {[%emt 0:00:54]} 141. Rf7+ {[%emt 0:04:36]} Kg8 {[%emt 0:00:36]} 142. Bd5 {[%emt 0:01:51]} Rg7 {[%emt 0:00:52]} 143. Rf1+ {[%emt 0:00:16]} Kh7 {[%emt 0:00:36]} 144. Bf7 {[%emt 0:00:17][%cal Rf1h1]} Rg2 {[%emt 0:00:38]} 145. Kf6 {[%emt 0:00:09] White threatens Rh1+ and mate.} Rg7 $2 {[%mdl 8192] [#]} (145... Rg1 $11) 146. Ke5 $2 (146. Rh1# {mates}) 146... Kh6 {The position is equal.} 147. Kf6 {[%cal Rf1h1]} Rg6+ 148. Ke5 Rg7 149. Kf6 {Weighted Error Value: White=0.06 (flawless) /Black=0.07 (flawless) .  Loses game:     	---       	Black=1      Missed win:     	White=1     	---        Mistake:       	White=2     	Black=1      Inaccurate:     	White=5     	Black=7      OK:         	White=56    	Black=42     Best:        	White=6     	Black=18     Strong:       	White=1     	Black=2} 1/2-1/2

[Event "Sheffield Masters 2024"]
[Site "Sheffield"]
[Date "2024.04.10"]
[Round "1"]
[White "Kanyamarala, Trisha"]
[Black "Pal, Rohan"]
[Result "1-0"]
[ECO "D37"]
[WhiteElo "2285"]
[BlackElo "2142"]
[Annotator "TA"]
[PlyCount "69"]
[EventDate "2024.04.11"]
[EventType "tourn"]
[EventCountry "ENG"]
[SourceTitle "playchess.com"]
[Source "ChessBase"]
[SourceQuality "1"]
[TimeControl "5400+30"]

{[%evp 18,69,29,26,41,29,29,25,41,37,76,63,227,221,258,245,278,291,322,325,316,325,436,433,420,406,381,288,275,286,263,252,376,382,376,360,389,378,393,386,404,398,543,447,705,447,521,520,635,494,799,798,29988,29989]} 1. d4 {[%emt 0:00:07]} d5 {[%emt 0:00:04]} 2. c4 {[%emt 0:00:16]} e6 {[%emt 0:00:03]} 3. Nf3 {[%emt 0:00:21]} Nf6 {[%emt 0:00:09]} 4. Nc3 {[%emt 0:00:24]} Be7 {[%emt 0:00:05]} 5. cxd5 {[%emt 0:00:22]} exd5 {[%emt 0:00:08]} 6. Bf4 {[%emt 0:00:20]} c6 {[%emt 0:00:24]} 7. h3 {[%emt 0:00:19]} O-O {[%emt 0:08:54]} 8. e3 {[%emt 0:00:25]} Re8 {[%emt 0:05:20]} 9. Bd3 {[%emt 0:01:40]} Nbd7 {[%emt 0:00:42][%cal Bb8d7,Bd7f8,Bf8g6][%mdl 32]} 10. O-O {[%emt 0:01:17]} Nf8 {[%emt 0:01:32]} 11. Bh2 {[%emt 0:02:17]} Ng6 {[%emt 0:00:47]} 12. Ne5 {[%emt 0:00:48]} Bd6 {[%emt 0:06:38] White has an edge.} 13. f4 {[%emt 0:02:21][%cal Bf2f4,Bf4f5][%mdl 32]} Qe7 {[%emt 0:09:17]} 14. Qc2 {[%emt 0:10:41] White is more active.} b5 $2 {[%emt 0:12:42]} (14... c5 $14) 15. Nxc6 $18 {[%emt 0:14:08]} Qxe3+ {[%emt 0:00:13]} 16. Kh1 {[%emt 0:00:12]} Bb7 {[%emt 0:21:40]} 17. Rf3 {[%emt 0:07:16]} (17. Bxb5 Nh4 18. Na5 Bc8 19. Bxe8 Bf5 20. Bxf7+ Kxf7) 17... Qe6 {[%emt 0:00:24]} 18. f5 {[%emt 0:11:16]} (18. Bxb5 Qc8 19. Na5 Nh4 $16) (18. Nxb5 $6 Nh4 $18) 18... Qd7 {[%emt 0:00:45]} 19. fxg6 {[%emt 0:02:41]} (19. Nxb5 Bxh2 20. fxg6 Bxc6 $11) 19... Bxh2 {[%emt 0:04:37]} 20. gxf7+ {[%emt 0:01:11]} (20. gxh7+ Kh8 $18) (20. Kxh2 Bxc6 21. gxf7+ (21. gxh7+ Kh8 $14) 21... Kxf7 22. Bxh7 Qd6+ 23. Kh1 Re7 $18) 20... Qxf7 {[%emt 0:01:15]} 21. Bxh7+ {[%emt 0:03:47]} ({Not} 21. Bxb5 Bb8 $18) (21. Nxb5 Bxc6 22. Kxh2 (22. Qxc6 Rac8 $14) 22... Qb7 $16) 21... Kh8 {[%emt 0:00:23]} 22. Kxh2 {[%emt 0:15:03]} ({Less strong is} 22. Nxb5 Bxc6 23. Qxc6 Rac8 $14) 22... Bxc6 {[%emt 0:05:55]} 23. Bg6 {[%emt 0:00:52]} Qc7+ {[%emt 0:00:07]} 24. Kh1 {[%emt 0:01:07]} Re7 {[%emt 0:01:30]} (24... Re6 {was worth a try.} 25. Qf2 Nh7) 25. Qf2 {[%emt 0:00:49]} b4 {[%emt 0:02:59]} 26. Ne2 {[%emt 0:02:04][%cal Bc3e2,Be2f4,Bf4g6,Bg6e5][%mdl 32]} Kg8 {[%emt 0:04:21]} 27. Nf4 {[%emt 0:00:58] [#] Qh4 is the strong threat.} Qd6 {[%emt 0:02:37]} 28. Qh4 {[%emt 0:01:58] Prevents Re4. Nh5 would now be deadly.} Be8 {[%emt 0:02:46]} 29. Raf1 {[%emt 0:03:36]} Bb5 {[%emt 0:01:48]} 30. Rc1 {[%emt 0:00:49] Threatens to win with Nh5.} Rd8 {[%emt 0:01:52]} (30... Be8 $142 31. Rg3 Rd8) 31. Bf5 {[%emt 0:01:28]} Rde8 {[%emt 0:00:54]} 32. Ng6 {[%emt 0:02:03]} Re2 {[%emt 0:01:16]} 33. Ne5 {[%emt 0:02:23] Wards off Bd7} Qe7 {[%emt 0:01:56]} (33... R2xe5 $142 34. dxe5 Rxe5) 34. Bg6 {[%emt 0:01:26]} Rf8 {[%emt 0:00:49] [#]} 35. Bh7+ $1 {[%emt 0:01:04][%mdl 512] Black got outplayed after the opening.   Weighted Error Value: White=0.33/Black=0.83.  Loses game:     	---       	Black=1      Mistake:       	---       	Black=3      Inaccurate:     	White=1     	Black=4      OK:         	White=12    	Black=4      Best:        	White=2     	Black=2} 1-0